[Event "Early-Titled-Tuesday-Blitz-May-28-2024"]
[Site "Chess.com"]
[Date "2024.05.28"]
[Round "2"]
[White "CrushingKings"]
[Black "LuisFSiles"]
[Result "1-0"]
[WhiteElo "2603"]
[BlackElo "2373"]
[TimeControl "180+1"]
[EndTime "8:19:40 PDT"]
[Termination "CrushingKings won on time"]

1. Nf3 {[%clk 0:02:58.6]} 1... Nf6 {[%clk 0:02:59.4]} 2. g3 {[%clk 0:02:49.4]}
2... g6 {[%clk 0:02:57.8]} 3. b3 {[%clk 0:02:48.8]} 3... Bg7 {[%clk 0:02:57.7]}
4. Bb2 {[%clk 0:02:48]} 4... O-O {[%clk 0:02:57.2]} 5. Bg2 {[%clk 0:02:48.6]}
5... c5 {[%clk 0:02:57.3]} 6. c4 {[%clk 0:02:48.2]} 6... Nc6 {[%clk 0:02:56.2]}
7. O-O {[%clk 0:02:47.8]} 7... d6 {[%clk 0:02:56.6]} 8. d4 {[%clk 0:02:47.7]}
8... cxd4 {[%clk 0:02:56.4]} 9. Nxd4 {[%clk 0:02:48.4]} 9... Bd7 {[%clk
0:02:56.8]} 10. Nc3 {[%clk 0:02:47.9]} 10... Nxd4 {[%clk 0:02:53.8]} 11. Qxd4
{[%clk 0:02:48.5]} 11... Bc6 {[%clk 0:02:54.3]} 12. Nd5 {[%clk 0:02:43.5]} 12...
Ne8 {[%clk 0:02:39.5]} 13. Qd2 {[%clk 0:02:41.9]} 13... Bxb2 {[%clk 0:02:34.9]}
14. Qxb2 {[%clk 0:02:42.8]} 14... e6 {[%clk 0:02:34.2]} 15. Nc3 {[%clk
0:02:33.4]} 15... Bxg2 {[%clk 0:02:22.4]} 16. Kxg2 {[%clk 0:02:33.7]} 16... Qf6
{[%clk 0:02:06]} 17. Rad1 {[%clk 0:02:33.1]} 17... Rd8 {[%clk 0:02:06]} 18. Rd3
{[%clk 0:02:19.4]} 18... Nc7 {[%clk 0:01:57.6]} 19. Qa3 {[%clk 0:02:17.1]} 19...
d5 {[%clk 0:01:23.7]} 20. cxd5 {[%clk 0:01:59.8]} 20... Nxd5 {[%clk 0:01:23.8]}
21. Nxd5 {[%clk 0:01:58.6]} 21... exd5 {[%clk 0:01:07.1]} 22. Qxa7 {[%clk
0:01:57.8]} 22... Qc6 {[%clk 0:00:58.6]} 23. Qd4 {[%clk 0:01:48.3]} 23... Rfe8
{[%clk 0:00:58.6]} 24. Rc3 {[%clk 0:01:41.2]} 24... Qa6 {[%clk 0:00:55.9]} 25.
e3 {[%clk 0:01:40.6]} 25... Qxa2 {[%clk 0:00:55]} 26. b4 {[%clk 0:01:34.9]}
26... Rc8 {[%clk 0:00:48.6]} 27. Rfc1 {[%clk 0:01:31.7]} 27... Rxc3 {[%clk
0:00:47.4]} 28. Rxc3 {[%clk 0:01:31.9]} 28... Qb2 {[%clk 0:00:34.7]} 29. Rc5
{[%clk 0:01:16.5]} 29... Qxd4 {[%clk 0:00:32.3]} 30. exd4 {[%clk 0:01:16.7]}
30... Rd8 {[%clk 0:00:31.5]} 31. Rc7 {[%clk 0:01:16.8]} 31... Re8 {[%clk
0:00:29.7]} 32. Rd7 {[%clk 0:01:15.9]} 32... Re2 {[%clk 0:00:26.7]} 33. Rxd5
{[%clk 0:01:15.8]} 33... Rb2 {[%clk 0:00:26.2]} 34. Rb5 {[%clk 0:01:16]} 34...
Rd2 {[%clk 0:00:26.1]} 35. d5 {[%clk 0:01:16.2]} 35... Kg7 {[%clk 0:00:25.6]}
36. Kf3 {[%clk 0:01:16.7]} 36... Kf6 {[%clk 0:00:24.1]} 37. Ke3 {[%clk
0:01:16.6]} 37... Rd1 {[%clk 0:00:23]} 38. Rb6+ {[%clk 0:01:11.5]} 38... Ke5
{[%clk 0:00:20]} 39. Rxb7 {[%clk 0:01:11.3]} 39... Rxd5 {[%clk 0:00:19.8]} 40.
Rxf7 {[%clk 0:01:11.5]} 40... h5 {[%clk 0:00:15.3]} 41. Re7+ {[%clk 0:00:42]}
41... Kf6 {[%clk 0:00:15.2]} 42. Re4 {[%clk 0:00:41.9]} 42... g5 {[%clk
0:00:13]} 43. Rc4 {[%clk 0:00:36.6]} 43... Rb5 {[%clk 0:00:12]} 44. Rc6+ {[%clk
0:00:35.3]} 44... Kf7 {[%clk 0:00:10.5]} 45. Rc5 {[%clk 0:00:35.4]} 45... Rxb4
{[%clk 0:00:10.1]} 46. Rxg5 {[%clk 0:00:36.1]} 46... h4 {[%clk 0:00:09.1]} 47.
Rh5 {[%clk 0:00:35.7]} 47... hxg3 {[%clk 0:00:05.1]} 48. hxg3 {[%clk 0:00:35.6]}
48... Kg6 {[%clk 0:00:05.8]} 49. Rh1 {[%clk 0:00:33.2]} 49... Rb3+ {[%clk
0:00:06.7]} 50. Kf4 {[%clk 0:00:33]} 50... Rb4+ {[%clk 0:00:07.2]} 51. Kf3
{[%clk 0:00:33.4]} 51... Rb3+ {[%clk 0:00:07.7]} 52. Kg2 {[%clk 0:00:34]} 52...
Rc3 {[%clk 0:00:07.8]} 53. Rb1 {[%clk 0:00:34.2]} 53... Ra3 {[%clk 0:00:07.3]}
54. Rb5 {[%clk 0:00:34]} 54... Rc3 {[%clk 0:00:06.6]} 55. g4 {[%clk 0:00:33.5]}
55... Ra3 {[%clk 0:00:05.8]} 56. f3 {[%clk 0:00:33.9]} 56... Rc3 {[%clk
0:00:05.4]} 57. Kg3 {[%clk 0:00:34.4]} 57... Ra3 {[%clk 0:00:05.5]} 58. Re5
{[%clk 0:00:30]} 58... Rb3 {[%clk 0:00:05.4]} 59. Kf4 {[%clk 0:00:29.4]} 59...
Rb4+ {[%clk 0:00:05.8]} 60. Re4 {[%clk 0:00:29.8]} 60... Rb3 {[%clk 0:00:06.5]}
61. Ra4 {[%clk 0:00:30]} 61... Rc3 {[%clk 0:00:05.8]} 62. Ra6+ {[%clk
0:00:29.5]} 62... Kf7 {[%clk 0:00:05.8]} 63. g5 {[%clk 0:00:29.7]} 63... Kg7
{[%clk 0:00:06.2]} 64. Kg4 {[%clk 0:00:28.5]} 64... Rc1 {[%clk 0:00:04.7]} 65.
f4 {[%clk 0:00:28.8]} 65... Rc5 {[%clk 0:00:04.8]} 66. f5 {[%clk 0:00:28.1]}
66... Rc1 {[%clk 0:00:02.9]} 67. Ra7+ {[%clk 0:00:27.8]} 67... Kg8 {[%clk
0:00:02.1]} 68. g6 {[%clk 0:00:27.5]} 1-0

[Event "Early-Titled-Tuesday-Blitz-May-28-2024"]
[Site "Chess.com"]
[Date "2024.05.28"]
[Round "2"]
[White "vladislavkovalev"]
[Black "AldokhinIvan"]
[Result "1-0"]
[WhiteElo "2914"]
[BlackElo "2607"]
[TimeControl "180+1"]
[EndTime "8:19:41 PDT"]
[Termination "vladislavkovalev won by resignation"]

1. e4 {[%clk 0:03:00.9]} 1... c5 {[%clk 0:03:00]} 2. Nf3 {[%clk 0:03:01.2]} 2...
e6 {[%clk 0:03:00.3]} 3. c3 {[%clk 0:03:01.2]} 3... Nf6 {[%clk 0:02:59.7]} 4. e5
{[%clk 0:03:00.9]} 4... Nd5 {[%clk 0:03:00.3]} 5. d4 {[%clk 0:03:01.5]} 5...
cxd4 {[%clk 0:03:00.4]} 6. cxd4 {[%clk 0:03:02.4]} 6... d6 {[%clk 0:03:00.1]} 7.
Bc4 {[%clk 0:03:02.8]} 7... Nc6 {[%clk 0:02:57.8]} 8. O-O {[%clk 0:03:02.5]}
8... Be7 {[%clk 0:02:57.4]} 9. Qe2 {[%clk 0:03:00.5]} 9... O-O {[%clk
0:02:56.4]} 10. Rd1 {[%clk 0:03:00.5]} 10... Bd7 {[%clk 0:02:48.5]} 11. a3
{[%clk 0:02:49.1]} 11... a6 {[%clk 0:02:40.2]} 12. Nbd2 {[%clk 0:02:46.9]} 12...
b5 {[%clk 0:02:30.4]} 13. Ba2 {[%clk 0:02:44.8]} 13... Qb8 {[%clk 0:02:13.3]}
14. Nf1 {[%clk 0:02:38]} 14... b4 {[%clk 0:02:05.5]} 15. Bd2 {[%clk 0:01:49.7]}
15... Qb6 {[%clk 0:01:42.3]} 16. Ng3 {[%clk 0:01:38.9]} 16... b3 {[%clk
0:01:18.2]} 17. Bb1 {[%clk 0:01:38.6]} 17... Nxd4 {[%clk 0:01:11.2]} 18. Nxd4
{[%clk 0:01:36.3]} 18... Qxd4 {[%clk 0:01:11.2]} 19. Bg5 {[%clk 0:01:19]} 19...
Qxd1+ {[%clk 0:00:25.3]} 20. Qxd1 {[%clk 0:01:19.9]} 20... Bxg5 {[%clk
0:00:25.6]} 21. exd6 {[%clk 0:00:56.8]} 21... Rfd8 {[%clk 0:00:22.7]} 22. Ne4
{[%clk 0:00:48.2]} 22... Bf4 {[%clk 0:00:19.9]} 23. Qxb3 {[%clk 0:00:47.8]}
23... Rab8 {[%clk 0:00:13.7]} 24. Qa2 {[%clk 0:00:27]} 24... f5 {[%clk
0:00:06.7]} 25. Nc3 {[%clk 0:00:21.5]} 25... Bc6 {[%clk 0:00:05.2]} 26. Bd3
{[%clk 0:00:18.8]} 26... Rxd6 {[%clk 0:00:05.5]} 27. Bc4 {[%clk 0:00:12.6]}
27... Nxc3 {[%clk 0:00:03.4]} 28. bxc3 {[%clk 0:00:13.5]} 28... Kh8 {[%clk
0:00:03.1]} 29. Qe2 {[%clk 0:00:10.5]} 29... Rbd8 {[%clk 0:00:03.3]} 30. Re1
{[%clk 0:00:09.1]} 30... Bg5 {[%clk 0:00:03.5]} 31. h3 {[%clk 0:00:05]} 31...
Rd2 {[%clk 0:00:04]} 32. Qxe6 {[%clk 0:00:04.5]} 32... Ba4 {[%clk 0:00:01.6]}
33. Qxf5 {[%clk 0:00:03.3]} 33... Bf6 {[%clk 0:00:01]} 34. Be6 {[%clk
0:00:02.1]} 34... h6 {[%clk 0:00:01.5]} 35. Qg6 {[%clk 0:00:02.2]} 35... Bc2
{[%clk 0:00:01]} 36. Bf5 {[%clk 0:00:02.5]} 36... Bxf5 {[%clk 0:00:01.9]} 37.
Qxf5 {[%clk 0:00:03.4]} 37... R2d3 {[%clk 0:00:02.2]} 38. Re8+ {[%clk
0:00:02.6]} 38... Rxe8 {[%clk 0:00:01.8]} 39. Qxd3 {[%clk 0:00:03.3]} 39... Rc8
{[%clk 0:00:02.2]} 40. Qxa6 {[%clk 0:00:02.8]} 40... Rd8 {[%clk 0:00:02.9]} 41.
g3 {[%clk 0:00:02.5]} 41... Bxc3 {[%clk 0:00:02]} 42. Qc4 {[%clk 0:00:01.9]}
42... Bf6 {[%clk 0:00:02.9]} 43. a4 {[%clk 0:00:02.2]} 43... Ra8 {[%clk
0:00:03.2]} 44. Qc6 {[%clk 0:00:02.1]} 44... Ra7 {[%clk 0:00:02.9]} 45. Qc8+
{[%clk 0:00:02.3]} 45... Kh7 {[%clk 0:00:02.6]} 46. Qc2+ {[%clk 0:00:03.2]}
46... Kh8 {[%clk 0:00:02.9]} 47. Qc8+ {[%clk 0:00:03.7]} 47... Kh7 {[%clk
0:00:03.1]} 48. Qc5 {[%clk 0:00:04.4]} 48... Rxa4 {[%clk 0:00:01.4]} 49. Qc2+
{[%clk 0:00:04.6]} 49... Kh8 {[%clk 0:00:01.6]} 50. Qxa4 {[%clk 0:00:05]} 50...
Kh7 {[%clk 0:00:02]} 51. Kg2 {[%clk 0:00:05.3]} 51... Kh8 {[%clk 0:00:02.1]} 52.
Qc2 {[%clk 0:00:06.2]} 1-0

[Event "Early-Titled-Tuesday-Blitz-May-28-2024"]
[Site "Chess.com"]
[Date "2024.05.28"]
[Round "2"]
[White "1stSecond"]
[Black "karinachess1"]
[Result "1-0"]
[WhiteElo "2911"]
[BlackElo "2605"]
[TimeControl "180+1"]
[EndTime "8:19:41 PDT"]
[Termination "1stSecond won by resignation"]

1. d4 {[%clk 0:03:00.9]} 1... Nf6 {[%clk 0:03:00]} 2. Bg5 {[%clk 0:03:01.4]}
2... d5 {[%clk 0:02:59.7]} 3. Bxf6 {[%clk 0:03:01]} 3... exf6 {[%clk 0:02:59.3]}
4. e3 {[%clk 0:03:00]} 4... c6 {[%clk 0:02:59.4]} 5. Nd2 {[%clk 0:03:00.5]} 5...
Bd6 {[%clk 0:02:59.5]} 6. Bd3 {[%clk 0:03:00.9]} 6... O-O {[%clk 0:03:00.2]} 7.
Qf3 {[%clk 0:03:01.2]} 7... Re8 {[%clk 0:02:57.6]} 8. Ne2 {[%clk 0:03:01.5]}
8... Nd7 {[%clk 0:02:57.6]} 9. g4 {[%clk 0:03:01.8]} 9... Nf8 {[%clk 0:02:50.1]}
10. h4 {[%clk 0:03:01.3]} 10... Be6 {[%clk 0:02:39.8]} 11. O-O-O {[%clk
0:02:59]} 11... c5 {[%clk 0:02:36.9]} 12. dxc5 {[%clk 0:02:58.4]} 12... Bxc5
{[%clk 0:02:37.8]} 13. Nb3 {[%clk 0:02:55.7]} 13... Bd6 {[%clk 0:02:27.6]} 14.
Nc3 {[%clk 0:02:45.6]} 14... Be5 {[%clk 0:02:18.7]} 15. Nd4 {[%clk 0:02:36.5]}
15... a6 {[%clk 0:02:16.3]} 16. Kb1 {[%clk 0:02:29.7]} 16... Rc8 {[%clk
0:01:57.4]} 17. Nce2 {[%clk 0:02:20.8]} 17... Qb6 {[%clk 0:01:40.7]} 18. g5
{[%clk 0:02:16.4]} 18... Rc7 {[%clk 0:01:25.2]} 19. Rhg1 {[%clk 0:02:14.4]}
19... Kh8 {[%clk 0:01:25.6]} 20. Rg2 {[%clk 0:01:53.9]} 20... Rec8 {[%clk
0:01:14.4]} 21. Rdg1 {[%clk 0:01:53.9]} 21... f5 {[%clk 0:01:05.5]} 22. c3
{[%clk 0:01:16.7]} 22... g6 {[%clk 0:00:32.4]} 23. h5 {[%clk 0:01:16.5]} 23...
Qd6 {[%clk 0:00:26.2]} 24. Rh1 {[%clk 0:01:15.1]} 24... b5 {[%clk 0:00:25.9]}
25. Qh3 {[%clk 0:01:08.9]} 25... b4 {[%clk 0:00:24]} 26. f4 {[%clk 0:01:01.9]}
26... Bxd4 {[%clk 0:00:19.5]} 27. cxd4 {[%clk 0:00:50.8]} 27... a5 {[%clk
0:00:19.4]} 28. Rgh2 {[%clk 0:00:33.9]} 28... a4 {[%clk 0:00:19.8]} 29. Qf1
{[%clk 0:00:34.5]} 29... a3 {[%clk 0:00:19.7]} 30. b3 {[%clk 0:00:22.5]} 30...
Qc6 {[%clk 0:00:20.2]} 31. Qe1 {[%clk 0:00:21.1]} 31... Qd6 {[%clk 0:00:20.1]}
32. Qd2 {[%clk 0:00:21.5]} 32... Rc6 {[%clk 0:00:14.6]} 33. Rd1 {[%clk 0:00:15]}
33... R6c7 {[%clk 0:00:14.8]} 34. Ng1 {[%clk 0:00:14]} 34... Rc3 {[%clk
0:00:12.7]} 35. Ne2 {[%clk 0:00:14.6]} 35... R3c7 {[%clk 0:00:12.6]} 36. Rhh1
{[%clk 0:00:13.1]} 36... Rc6 {[%clk 0:00:12.5]} 37. Bb5 {[%clk 0:00:12.6]} 37...
R6c7 {[%clk 0:00:12.6]} 38. h6 {[%clk 0:00:07.6]} 38... Rb8 {[%clk 0:00:11.9]}
39. Bd3 {[%clk 0:00:04.9]} 39... Nd7 {[%clk 0:00:12.2]} 40. Rc1 {[%clk
0:00:03.6]} 40... Rbc8 {[%clk 0:00:12.4]} 41. Rxc7 {[%clk 0:00:03.4]} 41... Rxc7
{[%clk 0:00:13.3]} 42. Rc1 {[%clk 0:00:03.7]} 42... Rxc1+ {[%clk 0:00:11.5]} 43.
Nxc1 {[%clk 0:00:04.6]} 43... Nb8 {[%clk 0:00:10.6]} 44. Bb5 {[%clk 0:00:05]}
44... Bd7 {[%clk 0:00:09.2]} 45. Qe2 {[%clk 0:00:03]} 45... Kg8 {[%clk
0:00:08.6]} 46. Bxd7 {[%clk 0:00:02.4]} 46... Nxd7 {[%clk 0:00:09]} 47. Nd3
{[%clk 0:00:03]} 47... Kf8 {[%clk 0:00:08.9]} 48. Qd2 {[%clk 0:00:03.5]} 48...
Ke7 {[%clk 0:00:05.4]} 49. Qxb4 {[%clk 0:00:04.1]} 49... Nb6 {[%clk 0:00:02.7]}
50. Kc1 {[%clk 0:00:03.2]} 50... Nc8 {[%clk 0:00:02.1]} 51. Qc5 {[%clk
0:00:01.6]} 51... Qxc5+ {[%clk 0:00:02.3]} 52. dxc5 {[%clk 0:00:02.1]} 52... Kd7
{[%clk 0:00:02.2]} 53. b4 {[%clk 0:00:02.5]} 53... Ke6 {[%clk 0:00:02.2]} 54.
Ne5 {[%clk 0:00:02.1]} 54... Na7 {[%clk 0:00:02.5]} 55. Nf3 {[%clk 0:00:02.3]}
55... Nc6 {[%clk 0:00:02.2]} 56. Nd4+ {[%clk 0:00:03.2]} 56... Kd7 {[%clk
0:00:02]} 57. Nxc6 {[%clk 0:00:03.7]} 57... Kxc6 {[%clk 0:00:02.9]} 58. Kc2
{[%clk 0:00:04.3]} 58... d4 {[%clk 0:00:03.1]} 59. exd4 {[%clk 0:00:04.5]} 1-0

[Event "Early-Titled-Tuesday-Blitz-May-28-2024"]
[Site "Chess.com"]
[Date "2024.05.28"]
[Round "2"]
[White "MNyuyu"]
[Black "Logman74"]
[Result "0-1"]
[WhiteElo "2296"]
[BlackElo "2519"]
[TimeControl "180+1"]
[EndTime "8:19:42 PDT"]
[Termination "Logman74 won on time"]

1. d4 {[%clk 0:03:00.9]} 1... Nf6 {[%clk 0:02:58.8]} 2. Nf3 {[%clk 0:03:00.7]}
2... g6 {[%clk 0:02:57.9]} 3. Bf4 {[%clk 0:02:59.3]} 3... d5 {[%clk 0:02:56.1]}
4. e3 {[%clk 0:02:59.7]} 4... c6 {[%clk 0:02:54.7]} 5. Nbd2 {[%clk 0:02:58.2]}
5... Bg7 {[%clk 0:02:55.1]} 6. Bd3 {[%clk 0:02:56]} 6... O-O {[%clk 0:02:55.6]}
7. h3 {[%clk 0:02:56.1]} 7... Nbd7 {[%clk 0:02:52.8]} 8. O-O {[%clk 0:02:56.6]}
8... h6 {[%clk 0:02:43]} 9. Bh2 {[%clk 0:02:55.9]} 9... Nh7 {[%clk 0:02:36.9]}
10. c3 {[%clk 0:02:53]} 10... Re8 {[%clk 0:02:37.2]} 11. Qc2 {[%clk 0:02:51.9]}
11... e5 {[%clk 0:02:36.6]} 12. dxe5 {[%clk 0:02:51.8]} 12... Nxe5 {[%clk
0:02:36.7]} 13. Nxe5 {[%clk 0:02:52.3]} 13... Bxe5 {[%clk 0:02:37.2]} 14. Bxe5
{[%clk 0:02:52.2]} 14... Rxe5 {[%clk 0:02:37.7]} 15. Nf3 {[%clk 0:02:51.9]}
15... Re8 {[%clk 0:02:37.3]} 16. Rad1 {[%clk 0:02:50]} 16... Qf6 {[%clk
0:02:34.3]} 17. Nh2 {[%clk 0:02:35.2]} 17... h5 {[%clk 0:02:26.7]} 18. Rfe1
{[%clk 0:02:28.2]} 18... Ng5 {[%clk 0:02:24.8]} 19. h4 {[%clk 0:02:21.9]} 19...
Ne6 {[%clk 0:02:16.3]} 20. g3 {[%clk 0:02:16]} 20... Nc5 {[%clk 0:02:15.7]} 21.
Bf1 {[%clk 0:02:11.3]} 21... Bf5 {[%clk 0:02:04.7]} 22. Qd2 {[%clk 0:02:04.5]}
22... Rad8 {[%clk 0:02:00.9]} 23. Qd4 {[%clk 0:02:03.8]} 23... Qe7 {[%clk
0:02:01]} 24. Bg2 {[%clk 0:01:59.1]} 24... Be4 {[%clk 0:01:55.6]} 25. Nf3 {[%clk
0:01:54.1]} 25... a6 {[%clk 0:01:48.9]} 26. Ng5 {[%clk 0:01:46.3]} 26... Bxg2
{[%clk 0:01:46.7]} 27. Kxg2 {[%clk 0:01:47.2]} 27... Ne6 {[%clk 0:01:46.3]} 28.
Nxe6 {[%clk 0:01:46.3]} 28... Qxe6 {[%clk 0:01:46.1]} 29. Qf4 {[%clk 0:01:42.4]}
29... Re7 {[%clk 0:01:33.2]} 30. Rd4 {[%clk 0:01:40.5]} 30... Rde8 {[%clk
0:01:31.1]} 31. Red1 {[%clk 0:01:39.3]} 31... Qc8 {[%clk 0:01:29]} 32. c4 {[%clk
0:01:32.8]} 32... Re4 {[%clk 0:01:23.6]} 33. Qf3 {[%clk 0:01:32.2]} 33... Rxd4
{[%clk 0:01:19.9]} 34. Rxd4 {[%clk 0:01:31.2]} 34... dxc4 {[%clk 0:01:20.1]} 35.
Rxc4 {[%clk 0:01:29]} 35... Qe6 {[%clk 0:01:20.5]} 36. Rd4 {[%clk 0:01:24.1]}
36... Qxa2 {[%clk 0:01:19.8]} 37. Rd7 {[%clk 0:01:20.7]} 37... Qb3 {[%clk
0:01:05.9]} 38. Qf6 {[%clk 0:01:14.1]} 38... a5 {[%clk 0:01:02.2]} 39. g4 {[%clk
0:00:56.5]} 39... Qc4 {[%clk 0:00:53.3]} 40. gxh5 {[%clk 0:00:39.9]} 40... Qg4+
{[%clk 0:00:45.8]} 41. Kf1 {[%clk 0:00:36]} 41... Qxd7 {[%clk 0:00:35.8]} 42. h6
{[%clk 0:00:31.5]} 42... Qd1+ {[%clk 0:00:28.3]} 43. Kg2 {[%clk 0:00:30.3]}
43... Qd5+ {[%clk 0:00:28.9]} 44. Kf1 {[%clk 0:00:28.9]} 44... Qe5 {[%clk
0:00:29.4]} 45. h7+ {[%clk 0:00:27]} 45... Kxh7 {[%clk 0:00:29.4]} 46. Qxf7+
{[%clk 0:00:27.2]} 46... Kh6 {[%clk 0:00:29.9]} 47. h5 {[%clk 0:00:25]} 47...
Qe6 {[%clk 0:00:24.8]} 48. Qf4+ {[%clk 0:00:23.3]} 48... g5 {[%clk 0:00:24.4]}
49. Qc7 {[%clk 0:00:23]} 49... Re7 {[%clk 0:00:24.4]} 50. Qb8 {[%clk 0:00:21.5]}
50... Qc4+ {[%clk 0:00:23.6]} 51. Ke1 {[%clk 0:00:19.1]} 51... Qc1+ {[%clk
0:00:23.4]} 52. Ke2 {[%clk 0:00:18.6]} 52... Qxb2+ {[%clk 0:00:24.1]} 53. Kf1
{[%clk 0:00:18.2]} 53... Qf6 {[%clk 0:00:24.6]} 54. Qd8 {[%clk 0:00:15.5]} 54...
a4 {[%clk 0:00:23.8]} 55. Qa5 {[%clk 0:00:14]} 55... Rf7 {[%clk 0:00:22.9]} 56.
f4 {[%clk 0:00:11.8]} 56... b5 {[%clk 0:00:23.1]} 57. Ke2 {[%clk 0:00:03]} 57...
gxf4 {[%clk 0:00:23.4]} 58. e4 {[%clk 0:00:03.3]} 58... f3+ {[%clk 0:00:23.2]}
59. Kf1 {[%clk 0:00:02.9]} 59... f2 {[%clk 0:00:22.7]} 60. Qd2+ {[%clk 0:00:02]}
60... Qf4 {[%clk 0:00:22.2]} 61. Qd6+ {[%clk 0:00:02.6]} 61... Qxd6 {[%clk
0:00:21.6]} 0-1

[Event "Early-Titled-Tuesday-Blitz-May-28-2024"]
[Site "Chess.com"]
[Date "2024.05.28"]
[Round "2"]
[White "Shushik"]
[Black "OhanyanEminChess"]
[Result "0-1"]
[WhiteElo "2568"]
[BlackElo "2822"]
[TimeControl "180+1"]
[EndTime "8:19:43 PDT"]
[Termination "OhanyanEminChess won by resignation"]

1. e4 {[%clk 0:03:00.9]} 1... e5 {[%clk 0:02:57]} 2. Nf3 {[%clk 0:03:01]} 2...
Nc6 {[%clk 0:02:56.7]} 3. Bc4 {[%clk 0:03:01.5]} 3... Nf6 {[%clk 0:02:56]} 4. d3
{[%clk 0:03:01.5]} 4... d5 {[%clk 0:02:54.6]} 5. exd5 {[%clk 0:03:01.1]} 5...
Nxd5 {[%clk 0:02:55.5]} 6. O-O {[%clk 0:03:00.9]} 6... Bc5 {[%clk 0:02:55.9]} 7.
Re1 {[%clk 0:02:56.6]} 7... Be6 {[%clk 0:02:55.8]} 8. c3 {[%clk 0:02:51.4]} 8...
O-O {[%clk 0:02:43.9]} 9. h3 {[%clk 0:02:43.7]} 9... f6 {[%clk 0:02:34.4]} 10.
d4 {[%clk 0:02:40.6]} 10... Bb6 {[%clk 0:02:33.7]} 11. Nbd2 {[%clk 0:02:29.4]}
11... Qd7 {[%clk 0:01:36.2]} 12. dxe5 {[%clk 0:01:49.5]} 12... fxe5 {[%clk
0:01:37.1]} 13. Ne4 {[%clk 0:01:48.3]} 13... h6 {[%clk 0:01:37]} 14. Be3 {[%clk
0:01:29.4]} 14... Rad8 {[%clk 0:01:03.6]} 15. Nc5 {[%clk 0:01:23.6]} 15... Qc8
{[%clk 0:00:54.2]} 16. Nxe6 {[%clk 0:01:19.9]} 16... Qxe6 {[%clk 0:00:55.1]} 17.
Bxb6 {[%clk 0:01:00.8]} 17... axb6 {[%clk 0:00:56]} 18. Qe2 {[%clk 0:01:00.9]}
18... Na5 {[%clk 0:00:36.8]} 19. Qxe5 {[%clk 0:00:57.9]} 19... Qxe5 {[%clk
0:00:35.3]} 20. Nxe5 {[%clk 0:00:58.8]} 20... Nxc4 {[%clk 0:00:35.2]} 21. Nxc4
{[%clk 0:00:59.7]} 21... Nf4 {[%clk 0:00:36.1]} 22. Rad1 {[%clk 0:00:56]} 22...
b5 {[%clk 0:00:32.8]} 23. Ne3 {[%clk 0:00:47.2]} 23... Nd3 {[%clk 0:00:19.9]}
24. Re2 {[%clk 0:00:47.3]} 24... Nc5 {[%clk 0:00:20.6]} 25. Red2 {[%clk
0:00:45.3]} 25... Ra8 {[%clk 0:00:20.6]} 26. a3 {[%clk 0:00:44.6]} 26... c6
{[%clk 0:00:20.9]} 27. f3 {[%clk 0:00:41.6]} 27... Rae8 {[%clk 0:00:20.5]} 28.
Ng4 {[%clk 0:00:35.5]} 28... h5 {[%clk 0:00:20.2]} 29. Nf2 {[%clk 0:00:35.8]}
29... Rf7 {[%clk 0:00:19.8]} 30. Rd8 {[%clk 0:00:34.5]} 30... Rxd8 {[%clk
0:00:19.3]} 31. Rxd8+ {[%clk 0:00:35.4]} 31... Kh7 {[%clk 0:00:20.2]} 32. Nd3
{[%clk 0:00:32.7]} 32... Na4 {[%clk 0:00:16.5]} 33. Kf2 {[%clk 0:00:30]} 33...
Re7 {[%clk 0:00:17]} 34. Rd4 {[%clk 0:00:27.1]} 34... c5 {[%clk 0:00:15.1]} 35.
Rd5 {[%clk 0:00:26.9]} 35... c4 {[%clk 0:00:13]} 36. Rxh5+ {[%clk 0:00:27.1]}
36... Kg8 {[%clk 0:00:12.8]} 37. Nf4 {[%clk 0:00:26.6]} 37... Nxb2 {[%clk
0:00:13.4]} 38. Rxb5 {[%clk 0:00:26.6]} 38... Nd1+ {[%clk 0:00:14.1]} 39. Kg3
{[%clk 0:00:27]} 39... Nxc3 {[%clk 0:00:14.2]} 40. Rc5 {[%clk 0:00:27.1]} 40...
b5 {[%clk 0:00:13.7]} 41. Ng6 {[%clk 0:00:26.3]} 41... Ra7 {[%clk 0:00:11.5]}
42. Rc8+ {[%clk 0:00:25.5]} 42... Kf7 {[%clk 0:00:08]} 43. Ne5+ {[%clk
0:00:25.7]} 43... Ke6 {[%clk 0:00:06.4]} 44. Nc6 {[%clk 0:00:20.8]} 44... Rxa3
{[%clk 0:00:05.6]} 45. Nd4+ {[%clk 0:00:21]} 45... Kd5 {[%clk 0:00:06.2]} 46.
Rd8+ {[%clk 0:00:20.6]} 46... Ke5 {[%clk 0:00:02.9]} 47. f4+ {[%clk 0:00:19.9]}
47... Ke4 {[%clk 0:00:02.1]} 48. Kg4 {[%clk 0:00:19.5]} 48... Nd5 {[%clk
0:00:02.5]} 49. Ne6 {[%clk 0:00:16.9]} 49... Nf6+ {[%clk 0:00:02.9]} 50. Kg5
{[%clk 0:00:16.5]} 50... Rg3+ {[%clk 0:00:02.9]} 51. Kh4 {[%clk 0:00:16.7]}
51... Rxg2 {[%clk 0:00:03.6]} 52. Ng5+ {[%clk 0:00:13.3]} 52... Kxf4 {[%clk
0:00:02.9]} 53. Rd4+ {[%clk 0:00:12.6]} 53... Kf5 {[%clk 0:00:03.5]} 54. Nf3
{[%clk 0:00:09]} 54... c3 {[%clk 0:00:03.2]} 55. Rb4 {[%clk 0:00:07.5]} 55... c2
{[%clk 0:00:02.6]} 56. Rxb5+ {[%clk 0:00:07.8]} 56... Kf4 {[%clk 0:00:03.2]} 57.
Ne1 {[%clk 0:00:06.5]} 57... g5+ {[%clk 0:00:01.9]} 0-1